fUSD/lending_fUSD_20241220
["ID","MTS","AMOUNT","RATE_DAILY","PERIOD"]
[346079007,1734694232871,-293.21,0.00020365,2]
[346079008,1734694232882,-1978.74,0.00020369,2]
[346079009,1734694232893,-293.21,0.00020371,2]
[346079010,1734694232903,-293.21,0.00020376,2]
[346079011,1734694232912,-293.21,0.00020382,2]
[346079012,1734694232921,-300.0,0.00020384,2]
[346079013,1734694232930,-293.21,0.00020387,2]
[346079014,1734694232939,-293.21,0.00020392,2]
[346079015,1734694232947,-150.0,0.00020441,2]
[346079016,1734694232956,-1000.0,0.00020448,2]
[346079017,1734694232966,-500.0,0.00020493,2]
[346079018,1734694232975,-401.17,0.00020493,2]
[346079019,1734694232984,-3000.0,0.000205,2]
[346079020,1734694232993,-23247.18333437,0.00020609,2]
[346079021,1734694233003,-981.97,0.00020678,2]
[346079022,1734694233012,-150.0,0.00020688,4]
[346079023,1734694233022,-150.0,0.00020688,4]
[346079024,1734694233031,-150.0,0.00020688,4]
[346079025,1734694233041,-150.0,0.00020688,4]
[346079026,1734694233051,-150.0,0.00020688,4]
[346079027,1734694233061,-150.0,0.00020688,4]
[346079028,1734694233070,-283.87244898,0.00020688,4]
[346079029,1734694233080,-150.0,0.00020688,4]
[346079030,1734694233090,-150.0,0.00020688,4]
[346079031,1734694233100,-150.0,0.00020688,4]
[346079032,1734694233110,-158.25900353,0.00020688,4]
[346079033,1734694233120,-150.0,0.00020688,4]
[346079034,1734694233129,-171.24060771,0.00020688,4]
[346079035,1734694233141,-150.59444624,0.00020688,4]
[346079036,1734694233152,-150.0,0.00020688,4]
[346079037,1734694233161,-150.0,0.00020773,4]
[346079038,1734694233171,-520.364,0.0002082,2]
[346079039,1734694233181,-150.0,0.00020852,4]
[346079040,1734694233191,-150.0,0.00020858,4]
[346079041,1734694233201,-415.91699699,0.00020878,2]
[346079042,1734694233211,-168.37,0.0002089,2]
[346079043,1734694233221,-150.0,0.00020897,4]
[346079044,1734694233231,-162.39,0.0002092,2]
[346079045,1734694233240,-150.0,0.00020943,4]
[346079046,1734694233250,-1354.20291796,0.00021,2]
[346079047,1734694233289,-415.0,0.00021,2]
[346079048,1734694233371,-948.96775587,0.00021,2]
[346079061,1734694237618,-853.2001569,0.0001831,2]
[346079064,1734694237677,-246.7998431,0.0001831,2]
[346079065,1734694237686,-3016.40322092,0.00021,2]
[346079066,1734694237697,-697.22027065,0.00021,2]
[346079067,1734694237706,-150.0,0.00021016,4]
[346079068,1734694237715,-150.0,0.00021028,4]
[346079069,1734694237724,-2001.10842101,0.00021064,2]
[346079070,1734694237733,-507.04,0.00021068,2]
[346079071,1734694237742,-494.18,0.00021068,2]
[346079072,1734694237751,-496.54,0.00021068,2]
[346079073,1734694237761,-504.31,0.00021068,2]
[346079074,1734694237770,-500.81,0.00021068,2]
[346079075,1734694237779,-500.51,0.00021068,2]
[346079076,1734694237788,-504.11,0.00021068,2]
[346079077,1734694237798,-150.0,0.00021106,4]
[346079078,1734694237808,-150.0,0.00021113,4]
[346079079,1734694237820,-2001.10842094,0.00021148,2]
[346079080,1734694237829,-900.0,0.00021164,2]
[346079081,1734694237838,-500.0,0.00021164,2]
[346079082,1734694237847,-364.93,0.00021178,2]
[346079083,1734694237856,-300.0,0.00021178,2]
[346079084,1734694237865,-150.0,0.0002118,4]
[346079085,1734694237874,-150.0,0.00021198,4]
[346079086,1734694237884,-2001.10842094,0.00021231,2]
[346079087,1734694237897,-415.91699699,0.00021232,2]
[346079088,1734694237906,-150.0,0.00021284,4]
[346079089,1734694237915,-635.0,0.0002131,2]
[346079090,1734694237925,-150.0,0.00021315,4]
[346079091,1734694237934,-2001.10842094,0.00021315,2]
[346079092,1734694237943,-150.0,0.00021344,4]
[346079093,1734694237953,-150.0,0.00021369,4]
[346079094,1734694237962,-2001.10842094,0.00021399,2]
[346079095,1734694237972,-415.91699699,0.0002141,2]
[346079096,1734694237982,-150.0,0.00021439,2]
[346079097,1734694237991,-150.0,0.00021454,4]
[346079098,1734694238001,-150.0,0.00021454,4]
[346079099,1734694238010,-961.92518872,0.00021477,2]
[346079100,1734694238021,-1.45981128,0.00021477,2]
[346079101,1734694238030,-275.7767949,0.00021477,2]
[346079102,1734694238040,-2001.10842094,0.00021482,2]
[346079103,1734694238048,-150.0,0.00021509,4]
[346079104,1734694238057,-150.0,0.00021524,4]
[346079105,1734694238066,-150.0,0.00021539,4]
[346079106,1734694238075,-2001.10842094,0.00021566,2]
[346079107,1734694238085,-150.0,0.00021624,4]
[346079108,1734694238094,-2001.10842094,0.0002165,2]
[346079109,1734694238103,-150.0,0.00021673,4]
[346079110,1734694238111,-2559.13575,0.000217,2]
[346079111,1734694238119,-150.0,0.00021709,4]
[346079112,1734694238128,-168.8545,0.00021717,2]
[346079113,1734694238137,-3359.05847876,0.00021717,2]
[346079114,1734694238152,-964.7811945,0.00021717,2]
[346079115,1734694238189,-183.79602674,0.00021717,2]
[346079116,1734694238199,-5000.0,0.00021717,2]
[346079117,1734694238208,-25578.85397318,0.00021717,2]
[346079118,1734694238219,-2633.9186044,0.00021717,2]
[346079119,1734694238241,-468.092625,0.00021717,2]
[346079120,1734694238251,-6348.342,0.00021717,2]
[346079121,1734694238262,-468.3,0.00021717,2]
[346079122,1734694238368,-1120.0,0.00021717,2]
[346079123,1734694238379,-1109.68611889,0.00021717,2]
[346079124,1734694238390,-1401.78,0.00021717,2]
[346079125,1734694238404,-470.56,0.00021717,2]
[346079300,1734694239749,-1018.33,0.00021717,2]
[346079302,1734694239760,-9120.16172983,0.00021717,2]
[346079305,1734694239769,-2699.235722,0.00021717,2]
[346079313,1734694239805,-54.04063364,0.00021717,2]
[346079316,1734694239815,-191.5198183,0.00021717,2]
[346079319,1734694239824,-331.80203795,0.00021717,2]
[346079322,1734694239833,-150.0,0.00021733,4]
[346079325,1734694239843,-2001.10842094,0.00021733,2]
[346079328,1734694239852,-150.0,0.00021735,2]
[346079331,1734694239861,-500.0,0.00021741,2]
[346079334,1734694239871,-191.51981821,0.00021766,2]
[346079336,1734694239879,-587.0,0.00021782,2]
[346079339,1734694239889,-150.0,0.00021794,4]
[346079342,1734694239902,-2053.88667295,0.000218,2]
[346079345,1734694239914,-962.70634916,0.000218,2]
[346079349,1734694239929,-903.06821089,0.000218,2]
[346079352,1734694239940,-1492.61,0.00021805,2]
[346079355,1734694239948,-1492.61,0.00021806,2]
[346079358,1734694239958,-1492.61,0.00021807,2]
[346079361,1734694239967,-1492.61,0.00021807,2]
[346079363,1734694239976,-620.91850939,0.00021807,2]
[346079366,1734694239987,-871.69149061,0.00021807,2]
[346079369,1734694239996,-3252.53755311,0.00021815,7]
[346079371,1734694240008,-1000.0,0.00021815,7]
[346079374,1734694240024,-1869.18,0.00021815,7]
[346079383,1734694240122,-301.34985258,0.00021815,7]
[346079385,1734694240134,-510.8485356,0.00021815,7]
[346079388,1734694240161,-1165.35320515,0.00021815,7]
[346079390,1734694240172,-2625.18224328,0.00021815,7]
[346079392,1734694240184,-1165.46611357,0.00021815,7]
[346079395,1734694240207,-656.14,0.00021815,7]
[346079397,1734694240219,-731.31115522,0.00021815,7]
[346079406,1734694240297,-16396.30953685,0.00021815,7]
[346079590,1734694242859,-153.0,0.0001938,2]
[346079591,1734694242869,-975.06641355,0.00021815,7]
[346079592,1734694242882,-1558.32946893,0.00021815,7]
[346079593,1734694242893,-273.88727203,0.00021815,7]
[346079594,1734694242925,-2829.18561165,0.00021815,7]
[346079595,1734694243005,-345.10120056,0.00021815,7]
[346079596,1734694243017,-4344.75183892,0.00021815,7]
[346079597,1734694243027,-191.51981821,0.00021816,2]
[346079598,1734694243036,-470.11171535,0.00021816,5]
[346079599,1734694243046,-7500.0,0.00021816,2]
[346079600,1734694243055,-975.2216,0.00021816,2]
[346079601,1734694243064,-29568.07278946,0.00021816,2]
[346079602,1734694243083,-1146.65714572,0.00021816,2]
[346079603,1734694243095,-253.66400836,0.00021816,2]
[346079604,1734694243106,-991.16,0.00021816,2]
[346079605,1734694243117,-5804.72755646,0.00021816,2]
[346079606,1734694243126,-1000.0,0.00021816,2]
[346079607,1734694243136,-2547.2494,0.00021817,2]
[346079608,1734694243146,-3124.83441538,0.00021817,2]
[346079609,1734694243174,-252.8456494,0.00021817,2]
[346079610,1734694243186,-47059.8616245,0.00021817,2]
[346079611,1734694243197,-781.27465,0.00021817,2]
[346079841,1734694245749,-418.18435819,0.00021817,2]
[346079874,1734694245914,-1008.57530465,0.00021817,2]
[346079889,1734694245995,-92549.29174439,0.00021817,2]
[346079930,1734694246078,-305.7489672,0.00021817,2]
[346079936,1734694246219,-3931.6428,0.00021817,2]
[346079939,1734694246230,-12514.23879981,0.00021817,2]
[346079943,1734694246242,-8413.68804365,0.00021817,2]
[346079946,1734694246253,-4689.38,0.00021817,2]
[346079955,1734694246290,-6628.91277423,0.00021817,2]
[346079958,1734694246303,-473.52012248,0.00021817,2]
[346079961,1734694246313,-386.5808,0.00021817,2]
[346079964,1734694246324,-26553.66444612,0.00021817,2]
[346079967,1734694246334,-198.63125538,0.00021817,2]
[346079970,1734694246343,-249.96646321,0.00021817,2]
[346079973,1734694246352,-2001.10842094,0.00021817,2]
[346079976,1734694246363,-306.96347926,0.00021817,2]
[346079979,1734694246372,-273.86401725,0.00021819,2]
[346079981,1734694246381,-150.0,0.00021837,4]
[346079983,1734694246390,-1000.3471417,0.00021848,10]
[346079985,1734694246402,-191.51981821,0.00021865,2]
[346079987,1734694246411,-152.21,0.0002187,2]
[346079989,1734694246420,-152.21,0.0002187,2]
[346079991,1734694246429,-152.21,0.0002187,2]
[346079993,1734694246440,-152.21,0.0002187,2]
[346079995,1734694246450,-152.21,0.0002187,2]
[346079997,1734694246459,-152.21,0.0002187,2]
[346079999,1734694246469,-152.21,0.0002187,2]
[346080001,1734694246478,-152.21,0.0002187,2]
[346080003,1734694246487,-152.21,0.0002187,2]
[346080005,1734694246497,-152.21,0.0002187,2]
[346080007,1734694246506,-152.21,0.0002187,2]
[346080009,1734694246516,-152.21,0.0002187,2]
[346080011,1734694246525,-152.21,0.0002187,2]
[346080012,1734694246535,-152.21,0.0002187,2]
[346080014,1734694246544,-159.87210762,0.00021873,2]
[346080016,1734694246554,-500.0,0.00021873,2]
[346080018,1734694246563,-283.34151214,0.00021873,2]
[346080020,1734694246573,-150.0,0.0002188,4]
[346080022,1734694246582,-7623.15661183,0.0002188,3]
[346080025,1734694246594,-41397.13760456,0.0002188,3]
[346080035,1734694246683,-2654.94895016,0.0002188,3]
[346080037,1734694246694,-189136.78410206,0.0002188,3]
[346080051,1734694246822,-151269.99127184,0.0002188,3]
[346080053,1734694246833,-616.79191827,0.0002188,3]
[346080056,1734694246845,-1025.000045,0.0002188,3]
[346080058,1734694246856,-325.95661418,0.0002188,3]
[346081629,1734694262601,-1000.0,0.00022,14]
[346082771,1734694279622,450.0,0.00013,2]
[346082772,1734694280838,500.0,0.00015,2]
[346082773,1734694321602,500.0,2.5e-05,30]
[346082788,1734694402896,8000.0,0.000225,30]
[346082789,1734694503949,2125.10337368,0.000235,120]
[346082791,1734694558624,-302.0,0.00017,2]
[346082792,1734694577733,-220.0,0.00017,2]
[346082793,1734694751597,1000.0,0.00021917,30]
[346082794,1734694751826,1000.0,0.00022191,30]
[346082795,1734694752120,1000.0,0.00022465,30]
[346082806,1734694930045,161.41,0.00010137,2]
[346082809,1734695044178,272.05,0.00020103,30]
[346082888,1734695336586,-161.41,0.00016813,2]
[346082892,1734695362318,-28.0,0.00017,2]
[346082896,1734695407721,-1076.67,0.00017881,2]
[346082941,1734695432213,-245.67,0.00018274,2]
[346082942,1734695432224,-246.29,0.00018346,2]
[346082943,1734695432235,-253.35,0.00018415,2]
[346082944,1734695432246,-199.14413373,0.000189,2]
[346082945,1734695432258,-152.0,0.0001894,3]
[346082946,1734695432268,-600.0,0.00019,2]
[346082947,1734695432277,-300.0,0.00019196,2]
[346082948,1734695432288,-629.0,0.00019197,2]
[346082949,1734695432298,-9805.159,0.00019197,2]
[346082950,1734695432308,-150.0,0.0001926,2]
[346082951,1734695432318,-3115.0,0.000194,2]
[346082952,1734695432328,-489.2,0.00019653,2]
[346082953,1734695432337,-579.3,0.00019705,2]
[346082954,1734695432347,-167.32,0.00019732,2]
[346082955,1734695432356,-500.0,0.00019781,2]
[346082956,1734695432366,-163.63,0.00019846,2]
[346082957,1734695432376,-1476.92,0.0001987,2]
[346082958,1734695432385,-854.4,0.0001987,2]
[346082959,1734695432395,-250.0,0.00019879,2]
[346082960,1734695432404,-473.9,0.00019911,2]
[346082961,1734695432414,-1202.06882233,0.00019954,2]
[346082962,1734695432426,-311.4111,0.00019954,2]
[346082963,1734695432438,-1364.92395901,0.00019954,2]
[346082964,1734695432450,-1842.0,0.00019954,2]
[346082965,1734695432466,-884.81430386,0.00019954,2]
[346082966,1734695432481,-3642.73534348,0.00019954,2]
[346082967,1734695432501,-1119.5184,0.00019954,2]
[346082968,1734695432513,-13532.52807132,0.00019954,2]
[346082969,1734695432523,-151.18,0.00020039,2]
[346082970,1734695432533,-800.0,0.00020068,2]
[346082971,1734695432543,-500.0,0.00020068,2]
[346082972,1734695432553,-250.0,0.00020074,2]
[346082973,1734695432572,-1000.0,0.0002012,2]
[346082974,1734695432593,-151.18,0.00020139,2]
[346082975,1734695432608,-1076.67,0.00020145,2]
[346082976,1734695432621,-249.39,0.00020251,2]
[346082977,1734695432630,-1500.0,0.00020321,2]
[346082978,1734695432640,-250.0,0.00020395,2]
[346082979,1734695432784,-27510.88468516,0.000204,3]
[346082980,1734695432796,-152.0,0.0002052,4]
[346082981,1734695432806,-179.6,0.00020532,2]
[346082982,1734695432816,-864.95,0.00020548,2]
[346082983,1734695432825,-250.0,0.0002074,2]
[346082984,1734695432835,-167.57,0.00020786,2]
[346082985,1734695432844,-3000.0,0.000208,2]
[346082986,1734695432853,-511.604,0.0002082,2]
[346082987,1734695432863,-420.0,0.0002092,2]
[346082988,1734695432873,-600.0,0.00020968,2]
[346082989,1734695432883,-650.0,0.00021,2]
[346082990,1734695432893,-10750.0,0.00021018,2]
[346082991,1734695432902,-800.0,0.00021164,2]
[346082992,1734695432912,-150.0,0.00021169,2]
[346082993,1734695432921,-500.0,0.00021315,2]
[346082994,1734695432931,-392.30785039,0.00021391,2]
[346082995,1734695432940,-5373.17397119,0.00021471,2]
[346082996,1734695432954,-396.92688037,0.00021471,2]
[346082997,1734695432972,-90180.39390295,0.00021471,2]
[346082998,1734695432989,-306.79256959,0.00021471,2]
[346082999,1734695433009,-262.76248,0.00021471,2]
[346083000,1734695433020,-312.69458048,0.00021471,2]
[346083001,1734695433034,-12672.55311542,0.00021471,2]
[346083003,1734695433044,-1365.67848951,0.00021472,2]
[346083005,1734695433057,-252.85395507,0.00021472,2]
[346083018,1734695433181,-3381.46755542,0.00021472,2]
[346083020,1734695433193,-2500.0,0.00021472,2]
[346083022,1734695433203,-150.0,0.00021477,4]
[346083024,1734695433219,-150.0,0.00021477,4]
[346083026,1734695433231,-150.0,0.00021477,4]
[346083027,1734695433241,-150.0,0.00021477,4]
[346083029,1734695433251,-150.0,0.00021477,4]
[346083031,1734695433263,-150.0,0.00021477,4]
[346083033,1734695433273,-150.0,0.00021477,4]
[346083035,1734695433283,-150.0,0.00021477,4]
[346083037,1734695433294,-2215.31940769,0.00021489,2]
[346083039,1734695433304,-655.16751262,0.00021496,2]
[346083041,1734695433313,-355.31027004,0.00021496,2]
[346083043,1734695433324,-500.0,0.000215,7]
[346083045,1734695433334,-500.0,0.000215,7]
[346083047,1734695433344,-500.0,0.000215,7]
[346083049,1734695433354,-500.0,0.000215,7]
[346083052,1734695433365,-500.0,0.000215,7]
[346083054,1734695433375,-500.0,0.000215,7]
[346083056,1734695433385,-500.0,0.000215,7]
[346083057,1734695433395,-500.0,0.000215,7]
[346083059,1734695433404,-500.0,0.000215,7]
[346083061,1734695433414,-500.0,0.000215,7]
[346083064,1734695433424,-500.0,0.000215,7]
[346083066,1734695433434,-500.0,0.000215,7]
[346083068,1734695433443,-500.0,0.000215,7]
[346083070,1734695433454,-500.0,0.000215,7]
[346083072,1734695433470,-500.0,0.000215,7]
[346083074,1734695433483,-500.0,0.000215,7]
[346083075,1734695433495,-382.47,0.000215,7]
[346083077,1734695433506,-500.0,0.000215,7]
[346083079,1734695433516,-500.0,0.000215,7]
[346083082,1734695433526,-500.0,0.000215,7]
[346083083,1734695433536,-500.0,0.000215,7]
[346083085,1734695433546,-500.0,0.000215,7]
[346083087,1734695433555,-500.0,0.000215,7]
[346083089,1734695433566,-500.0,0.000215,7]
[346083091,1734695433576,-500.0,0.000215,7]
[346083093,1734695433585,-500.0,0.000215,7]
[346083095,1734695433595,-500.0,0.000215,7]
[346083097,1734695433605,-500.0,0.000215,7]
[346083099,1734695433615,-500.0,0.000215,7]
[346083101,1734695433625,-500.0,0.000215,7]
[346083103,1734695433635,-500.0,0.000215,7]
[346083105,1734695433644,-500.0,0.000215,7]
[346083107,1734695433654,-500.0,0.000215,7]
[346083109,1734695433664,-500.0,0.000215,7]
[346083111,1734695433673,-500.0,0.000215,7]
[346083113,1734695433683,-500.0,0.000215,7]
[346083115,1734695433693,-500.0,0.000215,7]
[346083117,1734695433704,-500.0,0.000215,7]
[346083119,1734695433717,-500.0,0.000215,7]
[346083121,1734695433728,-500.0,0.000215,7]
[346083123,1734695433740,-500.0,0.000215,7]
[346083125,1734695433751,-500.0,0.000215,7]
[346083127,1734695433761,-500.0,0.000215,7]
[346083129,1734695433771,-500.0,0.000215,7]
[346083131,1734695433782,-500.0,0.000215,7]
[346083133,1734695433792,-500.0,0.000215,7]
[346083135,1734695433802,-500.0,0.000215,7]
[346083137,1734695433812,-500.0,0.000215,7]
[346083139,1734695433822,-500.0,0.000215,7]
[346083140,1734695433831,-500.0,0.000215,7]
[346083142,1734695433841,-500.0,0.000215,7]
[346083145,1734695433852,-500.0,0.000215,7]
[346083146,1734695433862,-500.0,0.000215,7]
[346083149,1734695433872,-500.0,0.000215,7]
[346083151,1734695433882,-500.0,0.000215,7]
[346083152,1734695433892,-500.0,0.000215,7]
[346083155,1734695433901,-524.19,0.000215,7]
[346083157,1734695433911,-500.0,0.000215,7]
[346083159,1734695433920,-400.0,0.000215,7]
[346083161,1734695433930,-866.417,0.00021555,2]
[346083163,1734695433940,-201.72,0.00021562,2]
[346083165,1734695433950,-201.72,0.00021562,2]
[346083166,1734695433959,-201.72,0.00021562,2]
[346083168,1734695433975,-201.72,0.00021562,2]
[346083170,1734695433986,-301.34985257,0.0002157,7]
[346083173,1734695433996,-7641.66481718,0.00021571,2]
[346083174,1734695434007,-211490.21053374,0.00021572,2]
[346083177,1734695434018,-151.0,0.00021596,2]
[346083179,1734695434028,-900.0,0.000216,7]
[346083180,1734695434037,-150.0,0.00021602,4]
[346083183,1734695434047,-446.3316,0.00021617,2]
[346083184,1734695434057,-1000.0,0.00021617,2]
[346083187,1734695434068,-1332.9432,0.00021617,2]
[346083189,1734695434078,-2215.31940766,0.00021646,2]
[346083190,1734695434088,-3021.63553,0.0002165,2]
[346083192,1734695434098,-655.16751262,0.00021652,2]
[346083194,1734695434108,-151.0,0.00021696,2]
[346083196,1734695434117,-1400.0,0.000217,7]
[346083198,1734695434127,-1981.0,0.000217,2]
[346083200,1734695434137,-25947.063,0.00021716,2]
[346083202,1734695434148,-150.0,0.00021728,4]
[346083204,1734695434157,-500.0,0.00021741,2]
[346083206,1734695434168,-201.72,0.0002177,2]
[346083208,1734695434180,-150.0,0.00021775,4]
[346083210,1734695434190,-150.0,0.00021775,4]
[346083212,1734695434201,-2048.5268,0.0002178,2]
[346083214,1734695434217,-731.5009,0.0002178,2]
[346083217,1734695434227,-1900.0,0.000218,7]
[346083219,1734695434237,-2215.31940766,0.00021803,2]
[346083221,1734695434247,-655.16751262,0.00021808,2]
[346083223,1734695434258,-214.2569685,0.00021817,2]
[346083225,1734695434268,-150.0,0.00021853,4]
[346083227,1734695434278,-152.21,0.0002187,2]
[346083229,1734695434289,-500.0,0.00021873,2]
[346083231,1734695434299,-261239.26611194,0.0002188,2]
[346083233,1734695434309,-151.0,0.0002188,2]
[346083235,1734695434318,-185.718767,0.0002188,2]
[346083237,1734695434328,-185.718767,0.0002188,2]
[346083238,1734695434339,-151.0,0.0002188,2]
[346083241,1734695434349,-151.0,0.0002188,2]
[346083242,1734695434359,-416.150704,0.0002188,2]
[346083244,1734695434369,-416.150704,0.0002188,2]
[346083246,1734695434380,-151.0,0.0002188,2]
[346083248,1734695434390,-168.946596,0.0002188,2]
[346083250,1734695434401,-168.946596,0.0002188,2]
[346083252,1734695434411,-1076.620299,0.0002188,2]
[346083254,1734695434421,-1076.620299,0.0002188,2]
[346083256,1734695434431,-1903.55167407,0.00021883,2]
[346083258,1734695434441,-1903.55167408,0.00021883,2]
[346083260,1734695434451,-152.21,0.0002189,2]
[346083262,1734695434466,-8538.0,0.0002189,2]
[346083264,1734695434477,-1221.0,0.0002189,2]
[346083266,1734695434487,-2400.0,0.000219,7]
[346083268,1734695434497,-2500.0,0.000219,4]
[346083270,1734695434506,-72677.36927414,0.000219,2]
[346083272,1734695434515,-453.2,0.000219,2]
[346083274,1734695434525,-179.6,0.00021901,2]
[346083276,1734695434535,-152.21,0.00021907,2]
[346083278,1734695434544,-152.21,0.00021907,2]
[346083280,1734695434554,-152.21,0.00021907,2]
[346083282,1734695434562,-152.21,0.00021907,2]
[346083284,1734695434572,-152.21,0.00021907,2]
[346083286,1734695434581,-152.21,0.00021907,2]
[346083287,1734695434591,-152.21,0.00021907,2]
[346083289,1734695434600,-152.21,0.00021907,2]
[346083291,1734695434610,-150.0,0.00021916,2]
[346083293,1734695434620,-500.0,0.00021916,2]
[346083295,1734695434629,-151.0,0.00021916,2]
[346083297,1734695434639,-151.0,0.00021916,2]
[346083299,1734695434649,-385.775772,0.00021916,2]
[346083301,1734695434658,-385.775772,0.00021916,2]
[346083303,1734695434668,-151.0,0.00021916,2]
[346083306,1734695434678,-151.0,0.00021916,2]
[346083307,1734695434687,-151.0,0.00021916,2]
[346083309,1734695434697,-186.946983,0.00021916,2]
[346083311,1734695434706,-186.946983,0.00021916,2]
[346083313,1734695434719,-151.0,0.00021916,2]
[346083315,1734695434729,-151.0,0.00021916,2]
[346083317,1734695434739,-151.0,0.00021916,2]
[346083319,1734695434749,-151.0,0.00021916,2]
[346083321,1734695434759,-2998.172573,0.00021916,2]
[346083323,1734695434768,-151.0,0.00021916,2]
[346083325,1734695434778,-151.0,0.00021916,2]
[346083338,1734695434889,-416.150704,0.00021916,2]
[346083340,1734695434898,-416.150704,0.00021916,2]
[346083342,1734695434907,-151.0,0.00021916,2]
[346083344,1734695434917,-168.946596,0.00021916,2]
[346083346,1734695434926,-168.946596,0.00021916,2]
[346083348,1734695434935,-1076.620299,0.00021916,2]
[346083350,1734695434944,-1076.620299,0.00021916,2]
[346083352,1734695434954,-1689.0,0.00021916,2]
[346083354,1734695434964,-253755.53493179,0.00021916,3]
[346083356,1734695434978,-285.41214538,0.00021916,3]
[346083358,1734695434989,-673.35227566,0.00021916,3]
[346083360,1734695435002,-660.17630286,0.00021916,3]
[346083363,1734695435013,-526.74260338,0.00021916,3]
[346083465,1734695437864,-251.55,0.0001831,2]
[346083466,1734695437874,-150.0,0.00021873,2]
[346083467,1734695437883,-429.4499999,0.00021916,3]
[346083468,1734695437895,-453.73999991,0.00021916,3]
[346083469,1734695437941,-27533.03865955,0.00021916,3]
[346083470,1734695437953,-13394.73892245,0.00021916,3]
[346083471,1734695437966,-790.63114695,0.00021916,3]
[346083472,1734695437978,-559.74437698,0.00021916,3]
[346083473,1734695437989,-4566.33342525,0.00021916,3]
[346083474,1734695437999,-1910.62669884,0.00021916,3]
[346083475,1734695438011,-3267.3708373,0.00021916,3]
[346083476,1734695438032,-3345.23422228,0.00021916,3]
[346083477,1734695438112,-470.39094375,0.00021916,3]
[346083478,1734695438124,-1680.272786,0.00021916,3]
[346083479,1734695438205,-337.94224911,0.00021916,3]
[346083480,1734695438220,-10260.24879013,0.00021916,3]
[346083481,1734695438560,-2847.84454176,0.00021916,3]
[346083482,1734695438572,-46509.29999996,0.00021916,3]
[346083483,1734695438583,-640.6590913,0.00021916,3]
[346083622,1734695440074,-1500.0,0.00021916,3]
[346083623,1734695440085,-30890.65,0.00021916,3]
[346083624,1734695440189,-3147.9834,0.00021916,3]
[346083625,1734695440237,-3399.999998,0.00021916,3]
[346083626,1734695440249,-698.69613987,0.00021916,3]
[346083627,1734695440261,-1482.44117405,0.00021916,3]
[346083628,1734695440273,-297.4799979,0.00021916,3]
[346083629,1734695440284,-557.838,0.00021916,3]
[346083630,1734695440295,-3977.97798639,0.00021916,3]
[346083631,1734695440307,-4650.0,0.00021916,3]
[346083632,1734695440318,-936.74976,0.00021916,3]
[346083633,1734695440330,-660.76030488,0.00021916,3]
[346083634,1734695440341,-608.29768958,0.00021916,3]
[346083635,1734695440422,-285.58334835,0.00021916,3]
[346083636,1734695440449,-1651.72969503,0.00021916,3]
[346083637,1734695440460,-1382.02352747,0.00021916,3]
[346083638,1734695440476,-934.48,0.00021916,3]
[346083639,1734695440510,-14021.16993643,0.00021916,3]
[346083641,1734695440566,-267.50108226,0.00021916,3]
[346083643,1734695440577,-1868.20457006,0.00021916,3]
[346083693,1734695445165,-318.69118545,0.00018308,2]
[346083694,1734695445174,-196.77,0.00021799,2]
[346083695,1734695445185,-569.54881529,0.00021916,2]
[346083696,1734695445197,-1001.45118471,0.00021916,2]
[346083697,1734695445206,-104852.16754046,0.00021916,3]
[346083698,1734695445246,-279.714,0.00021916,3]
[346083699,1734695445326,-4650.0,0.00021916,3]